lending/lending_fUSD_20260330
["ID","MTS","AMOUNT","RATE_DAILY","PERIOD"]
[419134502,1774907554059,-200.0,0.00016322,2]
[419134503,1774907554069,-200.0,0.00016322,2]
[419134504,1774907554078,-270.0,0.00016385,2]
[419134505,1774907554088,-270.0,0.00016394,2]
[419134506,1774907554099,-2000.0,0.000164,2]
[419134507,1774907554109,-339.3689,0.000164,17]
[419134508,1774907554119,-274.18610296,0.00016435,2]
[419134509,1774907554129,-500.0,0.00016437,2]
[419134510,1774907554139,-500.0,0.00016437,2]
[419134511,1774907554149,-1143.0,0.00016438,2]
[419134512,1774907554159,-1143.0,0.00016438,2]
[419134513,1774907554168,-1143.0,0.00016438,2]
[419134514,1774907554179,-1143.0,0.00016438,2]
[419134515,1774907554189,-1143.0,0.00016438,2]
[419134516,1774907554200,-1143.0,0.00016438,2]
[419134517,1774907554210,-1143.0,0.00016438,2]
[419134518,1774907554223,-1143.0,0.00016438,2]
[419134519,1774907554232,-1143.0,0.00016438,2]
[419134520,1774907554241,-1143.0,0.00016438,2]
[419134521,1774907554252,-1143.0,0.00016438,2]
[419134522,1774907554262,-1143.0,0.00016438,2]
[419134523,1774907554272,-1143.0,0.00016438,2]
[419134524,1774907554281,-1143.0,0.00016438,2]
[419134525,1774907554290,-1143.0,0.00016438,2]
[419134526,1774907554299,-1143.0,0.00016438,2]
[419134527,1774907554309,-1143.0,0.00016438,2]
[419134528,1774907554318,-1143.0,0.00016438,2]
[419134529,1774907554328,-1143.0,0.00016438,2]
[419134530,1774907554337,-1143.0,0.00016438,2]
[419134531,1774907554347,-1143.0,0.00016438,2]
[419134532,1774907554357,-1143.0,0.00016438,2]
[419134533,1774907554367,-1143.0,0.00016438,2]
[419134534,1774907554376,-1158.85886307,0.00016438,2]
[419134535,1774907554386,-2386.2,0.00016438,2]
[419134536,1774907554395,-228.99,0.00016438,2]
[419134537,1774907554404,-4713.0,0.00016456,2]
[419134538,1774907554415,-2806.0,0.0001648,2]
[419134539,1774907554424,-200.0,0.00016485,2]
[419134540,1774907554433,-200.0,0.00016485,2]
[419134541,1774907554443,-270.0,0.0001652,2]
[419134542,1774907554452,-300.0,0.00016547,2]
[419134543,1774907554462,-155.38,0.00016605,2]
[419134544,1774907554471,-200.0,0.0001665,2]
[419134545,1774907554480,-200.0,0.0001665,2]
[419134546,1774907554491,-3740.33220888,0.0001666,2]
[419134547,1774907554501,-4713.0,0.00016666,2]
[419134548,1774907554511,-270.0,0.00016673,2]
[419134549,1774907554520,-270.0,0.00016693,2]
[419134550,1774907554530,-270.0,0.00016695,2]
[419134551,1774907554540,-3144.4,0.00016712,2]
[419134552,1774907554550,-187.0,0.00016712,2]
[419134553,1774907554559,-1600.0,0.00016717,2]
[419134554,1774907554569,-2000.0,0.00016778,2]
[419134555,1774907554578,-4713.0,0.00016784,2]
[419134556,1774907554589,-270.0,0.00016861,2]
[419134557,1774907554598,-3144.4,0.00016986,2]
[419134558,1774907554607,-500.0,0.00016999,2]
[419134559,1774907554617,-500.0,0.00016999,2]
[419134560,1774907554627,-124565.82632798,0.00017,2]
[419134561,1774907554636,-73618.05758905,0.00017,2]
[419134562,1774907554646,-8885.13656046,0.00017,2]
[419134563,1774907554655,-318.221249,0.00017,2]
[419134564,1774907554665,-318.221249,0.00017,2]
[419134565,1774907554674,-318.221249,0.00017,2]
[419134566,1774907554684,-318.221249,0.00017,2]
[419134567,1774907554694,-151.0,0.00017,2]
[419134568,1774907554704,-151.0,0.00017,2]
[419134569,1774907554715,-151.0,0.00017,2]
[419134570,1774907554725,-221.142236,0.00017,2]
[419134571,1774907554735,-151.0,0.00017,2]
[419134572,1774907554744,-151.0,0.00017,2]
[419134573,1774907554755,-151.0,0.00017,2]
[419134574,1774907554765,-151.0,0.00017,2]
[419134575,1774907554776,-151.0,0.00017,2]
[419134576,1774907554785,-151.0,0.00017,2]
[419134577,1774907554794,-151.0,0.00017,2]
[419134578,1774907554804,-151.0,0.00017,2]
[419134579,1774907554813,-151.0,0.00017,2]
[419134580,1774907554822,-151.0,0.00017,2]
[419134581,1774907554831,-151.0,0.00017,2]
[419134582,1774907554840,-151.0,0.00017,2]
[419134583,1774907554849,-151.0,0.00017,2]
[419134584,1774907554858,-151.0,0.00017,2]
[419134585,1774907554869,-151.0,0.00017,2]
[419134586,1774907554879,-151.0,0.00017,2]
[419134587,1774907554889,-151.0,0.00017,2]
[419134588,1774907554899,-151.0,0.00017,2]
[419134590,1774907554908,-294.560932,0.00017,2]
[419134591,1774907554918,-270.0,0.0001704,2]
[419134592,1774907554929,-242.15909246,0.00017054,2]
[419134593,1774907554938,-4000.0,0.00017058,2]
[419134594,1774907554947,-400.0,0.00017095,2]
[419134595,1774907554956,-500.0,0.00017099,2]
[419134596,1774907554966,-500.0,0.00017099,2]
[419134597,1774907554975,-89209.01097222,0.000171,2]
[419134598,1774907554985,-270.0,0.00017114,2]
[419134599,1774907554994,-270.0,0.0001716,2]
[419134600,1774907555005,-270.0,0.00017202,2]
[419134601,1774907555015,-270.0,0.00017206,2]
[419134602,1774907555024,-300.0,0.00017234,2]
[419134603,1774907555033,-3144.4,0.0001726,2]
[419134604,1774907555043,-500.0,0.00017342,2]
[419134605,1774907555052,-270.0,0.00017383,2]
[419134606,1774907555061,-4713.0,0.0001744,2]
[419134607,1774907555071,-1462.69278283,0.00017456,2]
[419134608,1774907555080,-305.4949701,0.00017476,30]
[419134609,1774907555090,-3144.4,0.00017534,2]
[419134610,1774907555101,-251.11897888,0.00017602,2]
[419134611,1774907555111,-788.23115167,0.000177,2]
[419134612,1774907555120,-403.0,0.000177,5]
[419134613,1774907555130,-300.0,0.00017782,2]
[419134614,1774907555140,-445.5185,0.000178,22]
[419134615,1774907555149,-3144.4,0.00017808,2]
[419134616,1774907555159,-1009.31179923,0.0001786,2]
[419134617,1774907555169,-500.0,0.00017864,2]
[419134618,1774907555178,-1222.76,0.00017864,2]
[419134619,1774907555187,-2453.4716741,0.00017868,2]
[419134620,1774907555197,-902.81,0.00017889,2]
[419134621,1774907555207,-1231.49416133,0.0001789,2]
[419134622,1774907555216,-1079.12796334,0.0001789,2]
[419134623,1774907555225,-1106.84103678,0.0001789,2]
[419134624,1774907555234,-10000.0,0.0001797,2]
[419134625,1774907555244,-20000.0,0.0001799,2]
[419134626,1774907555254,-500.0,0.00017999,2]
[419134627,1774907555263,-304.35,0.00017999,2]
[419134628,1774907555272,-110220.26513239,0.00018,2]
[419134629,1774907555282,-1200.22193869,0.00018,2]
[419134630,1774907555292,-309.43052806,0.00018,2]
[419134631,1774907555302,-300.0,0.00018,2]
[419134632,1774907555312,-290.53,0.00018,8]
[419134633,1774907555322,-1000.0,0.00018,2]
[419134634,1774907555331,-175.22,0.00018,2]
[419134635,1774907555341,-300.0,0.00018,7]
[419134636,1774907555350,-200.0,0.00018,14]
[419134637,1774907555359,-2114.5746036,0.00018028,2]
[419134638,1774907555369,-400.0,0.0001807,2]
[419134640,1774907555378,-400.58672456,0.0001807,2]
[419134641,1774907555388,-976.02,0.00018082,2]
[419134642,1774907555398,-1633.78,0.00018082,2]
[419134643,1774907555407,-3144.4,0.00018082,2]
[419134644,1774907555417,-1791.36187497,0.000181,2]
[419134645,1774907555427,-162.38,0.00018149,2]
[419134646,1774907555437,-260.4103811,0.0001815,2]
[419134647,1774907555448,-1571.0,0.00018298,2]
[419134648,1774907555459,-298.5,0.000183,8]
[419134649,1774907555469,-2000.0,0.00018303,2]
[419134650,1774907555479,-177.41,0.00018303,30]
[419134651,1774907555490,-547.4435275,0.00018317,2]
[419134652,1774907555499,-300.0,0.0001833,2]
[419134653,1774907555510,-3144.4,0.00018356,2]
[419134654,1774907555519,-89135.85,0.00018356,2]
[419134655,1774907555528,-471.8253699,0.0001848,2]
[419134656,1774907555537,-1600.0,0.00018574,2]
[419134657,1774907555547,-2386.2,0.00018601,2]
[419134658,1774907555556,-3144.4,0.0001863,2]
[419134659,1774907555565,-1426.095,0.00018646,2]
[419134660,1774907555575,-270.0455652,0.00018698,2]
[419134661,1774907555584,-215.16209471,0.00018733,2]
[419134662,1774907555593,-30.43984078,0.00018878,2]
[419134663,1774907555607,-269.56015922,0.00018878,2]
[419134664,1774907555617,-516.25725211,0.00018904,2]
[419134665,1774907555628,-601.49835804,0.00018904,2]
[419134666,1774907555639,-410.32677016,0.00018904,2]
[419134667,1774907555730,-51.83761969,0.00018904,2]
[419134668,1774907555740,-2460.62816331,0.00018904,2]
[419134669,1774907555752,-683.77183669,0.00018904,2]
[419134670,1774907555761,-1358.22816334,0.00019,2]
[419134671,1774907555773,-2831.77183666,0.00019,2]
[419134672,1774907555782,-5205.00487769,0.00019,2]
[419134673,1774907555791,-361.51740542,0.0001901,7]
[419134674,1774907555800,-1462.69278283,0.00019011,2]
[419134675,1774907555810,-1522.93619943,0.00019178,2]
[419134677,1774907555838,-1621.46380057,0.00019178,2]
[419134678,1774907555847,-151.0,0.00019178,2]
[419134679,1774907555856,-151.0,0.00019178,2]
[419134680,1774907555865,-151.0,0.00019178,2]
[419134681,1774907555874,-4073.94723422,0.00019178,2]
[419134682,1774907555885,-16219.80276578,0.00019178,2]
[419134683,1774907555895,-584.87,0.000192,27]
[419134684,1774907555904,-280.03725112,0.00019246,2]
[419134685,1774907555914,-500.0,0.00019425,2]
[419134686,1774907555923,-300.0,0.00019426,2]
[419134687,1774907555932,-3144.4,0.00019452,2]
[419134688,1774907555942,-604.41,0.000196,2]
[419134689,1774907555952,-604.41,0.000196,2]
[419134690,1774907555962,-604.41,0.000196,2]
[419134691,1774907555973,-604.41,0.000196,2]
[419134692,1774907555983,-604.4,0.000196,2]
[419134693,1774907555994,-187.0,0.00019658,2]
[419134694,1774907556004,-151.0,0.000197,2]
[419134695,1774907556013,-151.0,0.000197,2]
[419134696,1774907556024,-151.0,0.000197,2]
[419134697,1774907556034,-198.11885467,0.00019794,2]
[419134698,1774907556045,-4963.86512264,0.000199,3]
[419134699,1774907556055,-151.0,0.00019949,2]
[419134700,1774907556066,-151.0,0.00019949,2]
[419134701,1774907556077,-151.0,0.00019949,2]
[419134702,1774907556087,-500.0,0.00019949,2]
[419134703,1774907556097,-500.0,0.00019949,2]
[419134704,1774907556106,-500.0,0.00019949,2]
[419134705,1774907556115,-500.0,0.00019949,2]
[419134706,1774907556124,-500.0,0.00019949,2]
[419134707,1774907556134,-500.0,0.00019949,2]
[419134708,1774907556144,-500.0,0.00019949,2]
[419134709,1774907556154,-500.0,0.00019949,2]
[419134710,1774907556163,-500.0,0.00019949,2]
[419134711,1774907556175,-500.0,0.00019949,2]
[419134712,1774907556186,-500.0,0.00019949,2]
[419134713,1774907556195,-500.0,0.00019949,2]
[419134714,1774907556206,-500.0,0.00019949,2]
[419134715,1774907556216,-500.0,0.00019949,2]
[419134716,1774907556226,-500.0,0.00019949,2]
[419134717,1774907556235,-500.0,0.00019949,2]
[419134718,1774907556243,-500.0,0.00019949,2]
[419134719,1774907556253,-500.0,0.00019949,2]
[419134721,1774907556262,-500.0,0.00019949,2]
[419134722,1774907556271,-500.0,0.00019949,2]
[419134723,1774907556280,-500.0,0.00019949,2]
[419134724,1774907556290,-118002.46392153,0.0001995,15]
[419134725,1774907556304,-30458.85912028,0.0001995,15]
[419134726,1774907556318,-379.12940536,0.0001995,15]
[419134727,1774907557820,385.41321125,9.552e-05,2]
[419134730,1774907563953,4279.1741529,9.552e-05,2]
[419134748,1774907678405,388.54,8.493e-05,2]
[419134751,1774907984366,650.0,8.231e-05,2]
[419134752,1774908107896,1150.0,8.001e-05,2]
[419134754,1774908338816,-390.3152,8.683e-05,2]
[419134755,1774908353429,274.78,7.697e-05,2]
[419134756,1774908353961,84.7655074,8.481e-05,2]
[419134757,1774908353988,455.2344926,8.481e-05,2]
[419134758,1774908416320,1450.0,8.257e-05,2]
[419134759,1774908431124,-219.21188986,8.773e-05,2]
[419134763,1774908479315,1329.5,8.501e-05,2]
[419134764,1774908541605,500.0,8.174e-05,2]
[419134765,1774908554189,-1420.78811014,8.773e-05,2]
[419134766,1774908554209,-150.0,8.773e-05,2]
[419134767,1774908554230,-5000.0,8.776e-05,2]
[419134768,1774908554252,-300.0,8.777e-05,2]
[419134769,1774908554273,-300.0,8.777e-05,2]
[419134770,1774908554294,-720.8258471,8.778e-05,2]
[419134771,1774908554315,-150.0,8.778e-05,2]
[419134772,1774908554337,-188.66049024,8.778e-05,2]
[419134773,1774908554359,-150.0,8.783e-05,2]
[419134774,1774908554382,-150.0,8.783e-05,2]
[419134775,1774908554402,-150.0,8.914e-05,2]
[419134776,1774908554424,-900.0,8.99e-05,2]
[419134777,1774908554445,-1102.25,9.046e-05,2]
[419134778,1774908554469,-700.0,9.07e-05,2]
[419134779,1774908554491,-466.25,9.274e-05,2]
[419134780,1774908554513,-800.0,9.28e-05,2]
[419134781,1774908554535,-321.21,9.353e-05,2]
[419134782,1774908554556,-206.0,9.389e-05,2]
[419134783,1774908554576,-159.0,9.389e-05,2]
[419134784,1774908554598,-572.85,9.469e-05,2]
[419134785,1774908554619,-308.0,9.525e-05,2]
[419134786,1774908554642,-1200.0,9.649e-05,2]
[419134787,1774908554663,-150.0,9.649e-05,2]
[419134788,1774908554684,-250.0,9.65e-05,2]
[419134789,1774908554705,-5000.0,9.65e-05,2]
[419134790,1774908554727,-250.0,9.65e-05,2]
[419134791,1774908554748,-5000.0,9.65e-05,2]
[419134792,1774908554768,-193.0,9.65e-05,2]
[419134793,1774908554789,-5000.0,9.65e-05,2]
[419134794,1774908554812,-250.0,9.65e-05,2]
[419134795,1774908554833,-420.0,9.655e-05,2]
[419134796,1774908554854,-420.0,9.655e-05,2]
[419134797,1774908554875,-500.0,9.67e-05,2]
[419134798,1774908554896,-501.12392041,9.67e-05,2]
[419134799,1774908554918,-1852.42,9.707e-05,2]
[419134800,1774908554939,-533.0,9.708e-05,2]
[419134801,1774908554962,-594.54,9.711e-05,2]
[419134802,1774908554983,-2172.03,9.751e-05,2]
[419134803,1774908555004,-1096.0,9.822e-05,2]
[419134804,1774908555027,-1525.72,9.822e-05,2]
[419134805,1774908555048,-184.44384423,0.0001,2]
[419134806,1774908555071,-151.0,0.0001,2]
[419134807,1774908555092,-151.0,0.0001,2]
[419134808,1774908555113,-151.0,0.0001,2]
[419134809,1774908555135,-151.0,0.0001,2]
[419134810,1774908555155,-151.0,0.0001,2]
[419134811,1774908555176,-151.0,0.0001,2]
[419134812,1774908555198,-151.0,0.0001,2]
[419134813,1774908555220,-151.0,0.0001,2]
[419134814,1774908555502,-151.0,0.0001,2]
[419134815,1774908555533,-151.0,0.0001,2]
[419134816,1774908555555,-151.0,0.0001,2]
[419134817,1774908555578,-151.0,0.0001,2]
[419134818,1774908555599,-151.0,0.0001,2]
[419134819,1774908555621,-151.0,0.0001,2]
[419134820,1774908555642,-164.15060716,0.0001,2]
[419134821,1774908555664,-158.05472478,0.0001,2]
[419134822,1774908555686,-1594.90136009,0.0001,2]
[419134823,1774908555708,-1386.78395259,0.0001,2]
[419134824,1774908555731,-500.0,0.0001,2]
[419134825,1774908555755,-1596.39,0.00010005,2]
[419134826,1774908555776,-188.66049022,0.00010026,2]
[419134827,1774908555801,-386.4,0.00010145,2]
[419134828,1774908555823,-150.0,0.000102,2]
[419134829,1774908555844,-150.0,0.00010247,2]
[419134830,1774908555866,-861.0,0.00010319,2]
[419134831,1774908555888,-150.0,0.00010364,2]
[419134832,1774908555910,-150.0,0.00010364,2]
[419134833,1774908555931,-1680.0,0.00010614,2]
[419134834,1774908555952,-227.7,0.00010614,2]
[419134835,1774908555972,-227.7,0.00010614,2]
[419134836,1774908555993,-255.0,0.00010614,2]
[419134837,1774908556015,-587.0,0.0001062,2]
[419134838,1774908556036,-388.80205699,0.00010664,2]
[419134839,1774908556058,-500.0,0.00010664,2]
[419134840,1774908556080,-763.0,0.00010926,2]
[419134841,1774908556101,-83.69539605,0.00010959,2]
[419134842,1774908556805,-587.0,0.0001062,2]
[419134843,1774908556826,-166.03555596,0.00010664,2]
[419134844,1774908556847,-314.81977592,0.00010664,2]
[419134845,1774908556868,-4980.78460395,0.00010959,2]
[419134846,1774908556889,-150.0,0.00010959,2]
[419134847,1774908561786,200.0,0.000106,2]
[419134848,1774908604456,2070.0,0.00010357,2]
[419134851,1774908604978,700.0,0.000113,2]
[419134852,1774908605930,500.0,0.00010664,2]
[419134853,1774908606111,245.47812698,0.00010664,2]
[419134854,1774908610179,23083.83825719,9.5e-05,3]
[419134861,1774908632028,-500.0,8.673e-05,2]
[419134862,1774908632038,-1138.49970388,9.5e-05,3]
[419134863,1774908632050,-315.42809693,9.5e-05,3]
[419134864,1774908632061,-1969.9903863,9.5e-05,3]
[419134865,1774908632085,-69237.65724079,9.5e-05,3]
[419134866,1774908632095,-5000.0,0.00011018,2]
[419134867,1774908632104,-4383.78436415,0.00011247,2]
[419134868,1774908632114,-300.0,0.00011372,2]
[419134869,1774908632124,-1200.0,0.00011372,2]
[419134870,1774908632134,-282.0,0.00011372,2]
[419134871,1774908632144,-250.0,0.00011373,2]
[419134872,1774908632155,-188.66049022,0.00011373,2]
[419134873,1774908632165,-8700.15527061,0.00011373,2]
[419134874,1774908632174,-273.44898747,0.00011397,2]
[419134875,1774908632184,-600.0,0.00011399,2]
[419134876,1774908632195,-600.0,0.00011416,2]
[419134877,1774908632205,-600.0,0.00011416,2]
[419134878,1774908632215,-600.0,0.00011416,2]
[419134879,1774908632225,-158.0,0.00011425,2]
[419134880,1774908632235,-1003.89322888,0.00011427,2]
[419134881,1774908632247,-3415.89674017,0.00011428,2]
[419134882,1774908632257,-208405.48260071,0.00011429,2]
[419134883,1774908632283,-7877.27739929,0.00011429,2]
[419134884,1774908632293,-227.16843817,0.00011473,2]
[419134885,1774908632303,-169.48691001,0.00011473,2]
[419134887,1774908632312,-500.0,0.00011473,2]
[419134889,1774908632323,-1737.78,0.00011507,2]
[419134891,1774908632333,-150.0,0.000116,2]
[419134892,1774908632343,-195.0,0.00011676,2]
[419134894,1774908632352,-5000.0,0.0001173,2]
[419134896,1774908632362,-166.66,0.00011747,2]
[419134898,1774908632372,-882.92,0.00011827,2]
[419134900,1774908632381,-250.0,0.00012002,2]
[419134902,1774908632391,-1476.59,0.00012101,2]
[419134903,1774908632401,-420.0,0.00012492,2]
[419134905,1774908632410,-1680.0,0.00012509,2]
[419134907,1774908632420,-153.45833412,0.00012509,2]
[419134909,1774908632430,-250.0,0.00012509,2]
[419134911,1774908632440,-600.0,0.0001251,2]
[419134913,1774908632449,-166.66,0.00012716,2]
[419134914,1774908632459,-1500.0,0.00012756,2]
[419134915,1774908632468,-161.84,0.000128,2]
[419134916,1774908632477,-401.15940205,0.00012865,2]
[419134917,1774908632490,-8298.99586855,0.00012865,2]
[419134918,1774908632500,-196.8748,0.00013,7]
[419134919,1774908632509,-150.0,0.00013264,2]
[419134920,1774908632522,-150.0,0.00013264,2]
[419134921,1774908632532,-150.47758697,0.00013264,2]
[419134922,1774908632542,-166.66,0.00013293,2]
[419134923,1774908632551,-150.0,0.00013441,2]
[419134924,1774908632560,-166.66,0.00013573,2]
[419134925,1774908632570,-14741.11442194,0.00013599,2]
[419134926,1774908632582,-288.95172588,0.00013599,2]
[419134927,1774908632593,-5470.09658171,0.00013599,2]
[419134929,1774908632602,-166.66,0.00013686,2]
[419134930,1774908632612,-22928.64,0.00013699,2]
[419134932,1774908632622,-1480.17,0.00013699,2]
[419134934,1774908632631,-2997.83,0.00013699,2]
[419134936,1774908632640,-108261.3381724,0.00013699,2]
[419134938,1774908632652,-636.55491741,0.00013699,2]
[419134939,1774908632663,-316.11449079,0.00013699,2]
[419134940,1774908632675,-1075.43,0.00013699,2]
[419134941,1774908632694,-1288.30785659,0.00013699,2]
[419134942,1774908632709,-5198.14859819,0.00013699,2]
[419134943,1774908632720,-675.0,0.00013699,2]
[419134944,1774908632734,-278.52586619,0.00013699,2]
[419134948,1774908638198,-5655.08009843,0.00013699,2]
[419134949,1774908638207,-1266.38,0.00013699,2]
[419134950,1774908638217,-999.99,0.00013699,2]
[419134951,1774908638227,-6648.04,0.00013699,2]
[419134952,1774908638236,-3127.77516354,0.00013699,2]
[419134953,1774908638264,-725.48483646,0.00013699,2]
[419134954,1774908638274,-150.99,0.00013699,2]
[419134955,1774908638283,-7509.68099474,0.00013699,2]
[419134956,1774908638298,-2490.30900526,0.00013699,2]
[419134957,1774908638312,-150.99,0.00013699,2]
[419134958,1774908638322,-9999.99,0.00013699,2]
[419134959,1774908638331,-9999.99,0.00013699,2]
[419134960,1774908638341,-500.0,0.00013699,2]
[419134961,1774908638351,-587.0,0.00013722,2]
[419134962,1774908638361,-2351.0,0.0001376,2]
[419134963,1774908638370,-166.66,0.00013853,2]
[419134964,1774908638380,-200.0,0.00014,2]
[419134965,1774908638389,-166.66,0.00014133,2]
[419134966,1774908638399,-1000.0,0.00014247,2]
[419134967,1774908638408,-8700.1552706,0.00014357,2]
[419134968,1774908638418,-258.3981,0.000144,12]
[419134969,1774908638428,-166.66,0.00014413,2]
[419134970,1774908638437,-1871.06752635,0.00014504,2]
[419134971,1774908638447,-166.66,0.00014693,2]
[419134972,1774908638456,-2808.0,0.0001475,2]
[419134973,1774908638466,-1500.0,0.00014795,2]
[419134974,1774908638476,-15030.06614774,0.00014844,2]
[419134975,1774908638485,-1100.0,0.000149,5]
[419134976,1774908638495,-150.0,0.00014976,2]
[419134977,1774908638504,-160.0,0.00015017,2]
[419134978,1774908638514,-739.0,0.00015073,2]
[419134979,1774908638523,-151.0,0.00015107,2]
[419134980,1774908638533,-3608.24808466,0.0001511,2]
[419134981,1774908638555,-273.62613258,0.0001511,2]
[419134982,1774908638571,-17800.45971582,0.0001511,2]
[419134984,1774908638588,-993.06144,0.0001511,2]
[419134991,1774908638790,-659.25974719,0.0001511,2]
[419134993,1774908638801,-2050.45002521,0.0001511,2]
[419134996,1774908638812,-2586.03552525,0.0001511,2]
[419135001,1774908638830,-1057.45112929,0.0001511,2]
[419135003,1774908638839,-841.0,0.00015136,2]
[419135006,1774908638852,-317.31267337,0.000152,2]
[419135054,1774908638864,-2464.68732663,0.000152,2]
[419135057,1774908639316,-504.13989445,0.00015342,2]
[419135059,1774908639326,-1000.0,0.00015478,2]
[419135061,1774908639335,-4000.0,0.00015507,2]
[419135063,1774908639345,-2808.0,0.0001552,2]
[419135065,1774908639354,-855.16862305,0.00015634,2]
[419135067,1774908639364,-1216.0,0.00015667,2]
[419135069,1774908639373,-87.05419121,0.00015667,2]
[419135237,1774908641084,-229.00541124,0.00012491,2]
[419135239,1774908641095,-239.34998813,0.00012491,2]
[419135289,1774908643262,-260.65001187,0.00012491,2]
[419135290,1774908643272,-500.0,0.00012491,2]
[419135291,1774908643281,-500.0,0.00012491,2]
[419135292,1774908643291,-500.0,0.00012491,2]
[419135293,1774908643300,-500.0,0.00012491,2]
[419135294,1774908643310,-500.0,0.00012491,2]
[419135295,1774908643320,-500.0,0.00012491,2]
[419135296,1774908643332,-500.0,0.00012491,2]
[419135297,1774908643342,-500.0,0.00012491,2]
[419135298,1774908643353,-500.0,0.00012491,2]
[419135299,1774908643363,-500.0,0.00012491,2]
[419135300,1774908643372,-500.0,0.00012491,2]
[419135301,1774908643382,-500.0,0.00012491,2]
[419135302,1774908643392,-500.0,0.00012491,2]
[419135303,1774908643402,-500.0,0.00012491,2]
[419135304,1774908643412,-500.0,0.00012491,2]
[419135305,1774908643421,-500.0,0.00012491,2]
[419135306,1774908643432,-500.0,0.00012491,2]
[419135307,1774908643442,-500.0,0.00012491,2]
[419135308,1774908643451,-249.72975415,0.00012491,2]
[419135309,1774908643461,-500.0,0.00012491,2]
[419135310,1774908643471,-500.0,0.00012491,2]
[419135311,1774908643481,-500.0,0.00012491,2]
[419135312,1774908643491,-500.0,0.00012491,2]
[419135313,1774908643501,-500.0,0.00012491,2]
[419135314,1774908643512,-500.0,0.00012491,2]
[419135315,1774908643521,-500.0,0.00012491,2]
[419135316,1774908643531,-500.0,0.00012491,2]
[419135317,1774908643541,-429.72045758,0.00012491,2]
[419135318,1774908643570,-70.27954242,0.00012491,2]
[419135319,1774908643579,-500.0,0.00012491,2]
[419135320,1774908643589,-500.0,0.00012491,2]
[419135321,1774908643599,-500.0,0.00012491,2]
[419135322,1774908643608,-500.0,0.00012491,2]
[419135323,1774908643618,-500.0,0.00012491,2]
[419135324,1774908643628,-500.0,0.00012491,2]
[419135325,1774908643638,-500.0,0.00012491,2]
[419135326,1774908643647,-500.0,0.00012491,2]
[419135327,1774908643657,-500.0,0.00012491,2]
[419135328,1774908643666,-500.0,0.00012491,2]
[419135329,1774908643676,-500.0,0.00012491,2]
[419135330,1774908643685,-160.0,0.0001568,7]
[419135331,1774908643694,-160.0,0.0001568,7]
[419135332,1774908643704,-2200.0,0.000157,5]
[419135333,1774908643713,-1571.0,0.0001572,2]
[419135334,1774908643722,-298.0,0.00015753,2]
[419135335,1774908643732,-3300.0,0.000158,5]
[419135336,1774908643741,-339.1474,0.000158,17]
[419135337,1774908643750,-8700.1552706,0.00015849,2]
[419135338,1774908643760,-4000.0,0.00015895,2]
[419135339,1774908643769,-4400.0,0.000159,5]
[419135340,1774908643779,-555.53670109,0.000159,2]
[419135341,1774908643788,-728.99857214,0.000159,2]
[419135342,1774908643799,-2016.8424965,0.000159,2]
[419135346,1774908646085,-1298.60426272,0.000159,2]
[419135347,1774908646097,-2913.12018298,0.000159,2]
[419135348,1774908646194,-3016.57165071,0.000159,2]
[419135349,1774908646207,-322.8916,0.000159,2]
[419135350,1774908646407,-13212.3338,0.000159,2]
[419135351,1774908646419,-4654.42080045,0.000159,2]